bitfinex/quotes_SOLUSD_20250919
["timestamp","ask_amount","ask_price","bid_price","bid_amount"]
[1758249966873,1e-08,247.29,247.26,18.31558551]
[1758249967080,1e-08,247.29,247.28,1.45378941]
[1758249967648,1e-08,247.29,247.28,13.60076785]
[1758249968571,1e-08,247.29,247.28,17.64476655]
[1758249969273,14.30559402,247.29,247.28,17.64476655]
[1758249969677,13.59559402,247.29,247.28,17.64476655]
[1758249969879,1e-08,247.29,247.28,18.31476655]
[1758249972650,1e-08,247.29,247.28,17.64476655]
[1758249973249,0.71000001,247.29,247.28,17.64476655]
[1758249973659,1e-08,247.29,247.28,17.64476655]
[1758249974073,1e-08,247.29,247.28,16.19097714]
[1758249974244,14.30559402,247.29,247.27,26.0]
[1758249974449,14.30559401,247.28,247.27,26.0]
[1758249974668,14.30559401,247.28,247.27,27.6196627]
[1758249975267,14.30559401,247.28,247.27,5.66382495]
[1758249975471,13.59559401,247.28,247.27,5.66382495]
[1758249975858,13.59559401,247.28,247.27,7.11761436]
[1758249976478,14.30559401,247.28,247.27,7.11761436]
[1758249977172,1e-08,247.29,247.27,7.11761436]
[1758249977378,1e-08,247.29,247.28,2.12378941]
[1758249977757,0.71000001,247.29,247.28,3.07318982]
[1758249978471,1e-08,247.29,247.28,3.07318982]
[1758249978980,0.71000001,247.29,247.28,3.07318982]
[1758249979759,0.71000001,247.29,247.28,7.93463559]
[1758249981081,1e-08,247.29,247.28,7.93463559]
[1758249981657,0.71000001,247.29,247.28,7.93463559]
[1758249982283,1e-08,247.29,247.28,7.93463559]
[1758249987774,1e-08,247.29,247.28,8.58463559]
[1758249987983,1e-08,247.29,247.28,8.61463559]
[1758249995697,1e-08,247.29,247.28,38.88463559]
[1758249995885,1e-08,247.29,247.28,39.53463559]
[1758249998284,1e-08,247.3,247.28,39.53463559]
[1758249998486,1e-08,247.3,247.29,2.92123648]
[1758249998807,1e-08,247.3,247.29,2.27123648]
[1758249999007,1e-08,247.3,247.29,3.89030915]
[1758249999178,1e-08,247.3,247.29,4.54030915]
[1758250000179,1e-08,247.3,247.29,8.58414432]
[1758250001174,1e-08,247.3,247.29,39.50414432]
[1758250001575,1e-08,247.3,247.29,8.58414432]
[1758250001799,1e-08,247.3,247.29,39.50414432]
[1758250002622,1e-08,247.3,247.29,8.58414432]
[1758250002905,1e-08,247.3,247.29,39.50414432]
[1758250004513,1e-08,247.32,247.31,26.0]
[1758250004712,1e-08,247.32,247.31,61.46247296]
[1758250004889,1e-08,247.32,247.31,62.11247296]
[1758250005215,1e-08,247.32,247.31,69.28865034]
[1758250005509,1e-08,247.32,247.31,73.33215848]
[1758250006627,0.06,247.34,247.31,83.44092884]
[1758250006785,1e-08,247.34,247.33,2.27123648]
[1758250006980,1e-08,247.34,247.33,33.19123648]
[1758250007184,1e-08,247.34,247.33,33.84123648]
[1758250007389,1e-08,247.34,247.33,39.35963646]
[1758250007725,1e-08,247.35,247.33,39.35963646]
[1758250007886,1e-08,247.35,247.34,2.92123648]
[1758250008282,0.1,247.39,247.36,26.0]
[1758250008510,0.1,247.39,247.38,2.27123648]
[1758250008687,0.1,247.39,247.38,6.31360045]
[1758250009514,0.1,247.39,247.38,18.45222353]
[1758250010598,0.1,247.39,247.38,16.18098705]
[1758250010811,0.76,247.39,247.38,16.18098705]
[1758250010985,0.76,247.39,247.38,18.45222353]
[1758250011187,0.76,247.39,247.38,6.31360045]
[1758250011425,0.76,247.39,247.38,8.58483693]
[1758250011803,0.76,247.39,247.38,6.31360045]
[1758250011989,0.76,247.39,247.38,8.58483693]
[1758250012395,0.1,247.39,247.38,8.58483693]
[1758250013303,0.1,247.39,247.38,39.50483693]
[1758250013797,0.76,247.39,247.38,39.50483693]
[1758250014000,0.1,247.39,247.38,39.50483693]
[1758250014409,0.76,247.39,247.38,8.58483693]
[1758250014729,0.1,247.39,247.38,39.50483693]
[1758250015696,0.1,247.39,247.38,37.23360045]
[1758250015895,0.1,247.39,247.38,39.50483693]
[1758250016697,0.1,247.39,247.38,37.23360045]
[1758250017030,0.1,247.39,247.38,39.50483693]
[1758250017798,0.1,247.39,247.38,40.20483693]
[1758250019207,0.1,247.39,247.38,39.50483693]
[1758250019423,0.1,247.39,247.38,40.20483693]
[1758250019629,0.1,247.39,247.38,39.50483693]
[1758250020136,0.1,247.39,247.38,37.23360045]
[1758250020308,0.1,247.39,247.38,39.50483693]
[1758250020637,0.1,247.39,247.38,37.23360045]
[1758250020933,0.1,247.39,247.38,39.50483693]
[1758250021312,0.1,247.39,247.38,40.20483693]
[1758250021534,0.1,247.39,247.38,39.50483693]
[1758250024123,0.79,247.39,247.38,8.58483693]
[1758250024428,0.79,247.39,247.38,39.48483693]
[1758250024923,0.1,247.39,247.38,39.48483693]
[1758250026734,0.1,247.39,247.38,40.18483693]
[1758250032527,0.1,247.39,247.38,39.48483693]
[1758250034924,0.1,247.39,247.38,37.21360045]
[1758250035115,0.1,247.39,247.38,39.48483693]
[1758250037948,0.1,247.39,247.38,6.31360045]
[1758250038122,0.79,247.39,247.38,39.48483693]
[1758250039841,0.79,247.39,247.38,8.58483693]
[1758250040052,0.79,247.39,247.38,39.48483693]
[1758250040348,0.79,247.39,247.38,8.58483693]
[1758250040644,14.44559401,247.39,247.37,26.0]
[1758250040850,0.69,247.38,247.37,26.0]
[1758250042321,0.69,247.38,247.37,30.04252738]
[1758250043248,0.69,247.38,247.37,4.04252738]
[1758250047348,13.75559401,247.39,247.37,4.04252738]
[1758250047527,0.16,247.39,247.38,5.49512321]
[1758250047730,0.16,247.39,247.38,6.17512321]
[1758250048238,0.16,247.39,247.38,38.69367178]
[1758250055055,0.06,247.39,247.38,38.69367178]
[1758250055248,0.06,247.42,247.41,26.0]
[1758250055443,0.06,247.42,247.41,27.45275924]
[1758250056237,0.06,247.42,247.41,31.49463305]
[1758250056931,0.06,247.42,247.41,43.63276499]
[1758250057931,0.06,247.42,247.41,31.49463305]
[1758250058352,0.75,247.42,247.41,31.49463305]
[1758250059824,0.06,247.42,247.41,31.49463305]
[1758250060450,0.06,247.42,247.41,33.11305064]
[1758250064956,0.75,247.42,247.41,33.11305064]
[1758250065160,0.06,247.42,247.41,33.11305064]
[1758250066545,13.59559401,247.41,247.39,4.04205108]
[1758250066747,14.28559401,247.4,247.39,4.04205108]
[1758250066948,13.59559401,247.39,247.37,5.6612075]
[1758250067147,0.69,247.38,247.37,4.04239692]
[1758250067347,0.69,247.38,247.35,11.58981829]
[1758250067348,14.28559401,247.38,247.35,1.48275924]
[1758250067541,0.69,247.37,247.35,4.07273664]
[1758250067743,0.69,247.36,247.35,4.07273664]
[1758250070351,14.28559401,247.36,247.35,4.07273664]
[1758250071474,14.28559401,247.36,247.35,0.03]
[1758250072567,15.73835325,247.36,247.35,0.03]
[1758250074471,14.28559401,247.36,247.35,0.03]
[1758250078660,16.02267639,247.36,247.35,0.03]
[1758250079764,20.0653672,247.36,247.35,0.03]
[1758250080678,16.02267639,247.36,247.35,0.03]
[1758250081059,20.0653672,247.36,247.35,0.03]
[1758250084257,18.61260796,247.36,247.35,0.03]
[1758250084457,20.0653672,247.36,247.35,0.03]
[1758250085783,21.68516108,247.36,247.35,0.03]
[1758250087086,39.87991715,247.33,247.32,0.03]
[1758250087277,78.04371335,247.33,247.32,0.03]
[1758250087475,78.76371335,247.33,247.32,0.03]
[1758250087868,80.38370403,247.33,247.32,0.03]
[1758250088373,84.4268852,247.33,247.32,0.03]
[1758250090085,104.4268852,247.33,247.32,0.03]
[1758250090572,13.87991715,247.32,247.3,0.03]
[1758250090783,178.73267639,247.31,247.3,0.03]
[1758250090975,179.45267639,247.31,247.3,0.03]
[1758250091180,48.57299519,247.31,247.3,0.03]
[1758250093191,41.33267639,247.29,247.28,0.03]
[1758250093398,72.23267639,247.29,247.28,0.03]
[1758250093698,72.95267639,247.29,247.28,0.03]
[1758250094972,42.05267639,247.29,247.28,0.03]
[1758250095197,72.95267639,247.29,247.28,0.03]
[1758250095379,74.57299519,247.29,247.28,0.03]
[1758250096889,43.67299519,247.29,247.28,0.03]
[1758250097097,74.59299519,247.29,247.28,0.03]
[1758250098192,47.71683036,247.29,247.28,0.03]
[1758250098498,78.63683036,247.29,247.28,0.03]
[1758250098869,81.82895198,247.29,247.28,0.03]
[1758250099074,13.87991715,247.28,247.27,0.03]
[1758250099298,15.33267639,247.28,247.27,0.03]
[1758250099478,16.05267639,247.28,247.27,0.03]
[1758250099678,17.67312647,247.28,247.27,0.03]
[1758250099888,21.71712517,247.28,247.27,0.03]
[1758250100275,44.95075967,247.28,247.27,0.03]
[1758250101899,45.77210979,247.28,247.27,0.03]
[1758250103774,76.69210979,247.28,247.27,0.03]
[1758250103972,45.77210979,247.28,247.27,0.03]
[1758250104374,76.69210979,247.28,247.27,0.03]
[1758250106197,45.77210979,247.28,247.27,0.03]
[1758250106503,76.69210979,247.28,247.27,0.03]
[1758250108004,78.96621915,247.28,247.26,0.03]
[1758250108192,18.42813587,247.27,247.26,0.03]
[1758250108498,40.65244031,247.27,247.26,0.03]
[1758250108806,46.98711829,247.27,247.26,0.03]
[1758250109213,46.98711829,247.27,247.26,0.72]
[1758250109214,66.73989845,247.27,247.26,0.72]
[1758250109506,67.02422159,247.27,247.26,0.72]
[1758250110310,66.88206002,247.27,247.26,0.72]
[1758250110604,67.02422159,247.27,247.26,0.72]
[1758250111795,71.06838384,247.27,247.26,0.72]
[1758250112194,73.3424932,247.27,247.26,0.03]
[1758250113613,74.0124932,247.27,247.26,0.03]
[1758250113923,75.63294328,247.27,247.26,0.03]
[1758250115287,13.87991715,247.26,247.25,0.03]
[1758250115501,18.42813587,247.26,247.25,0.03]
[1758250115717,40.09748495,247.26,247.25,0.03]
[1758250116008,42.388132,247.26,247.25,0.03]
[1758250116630,49.17487422,247.26,247.25,0.03]
[1758250118103,53.21920003,247.26,247.25,0.03]
[1758250121919,84.15920003,247.26,247.25,0.03]
[1758250128947,53.21920003,247.26,247.25,0.03]
[1758250129099,39.87991715,247.24,247.23,0.03]
[1758250129304,75.34813587,247.24,247.23,0.03]
[1758250129512,64.75477141,247.24,247.23,0.03]
[1758250129729,95.67477141,247.24,247.23,0.03]
[1758250130830,96.34477141,247.24,247.23,0.03]
[1758250131215,69.46942437,247.24,247.23,0.03]
[1758250131539,72.78170458,247.24,247.23,0.72]
[1758250131723,71.44531501,247.24,247.23,0.72]
[1758250132529,67.40066205,247.24,247.23,0.72]
[1758250133906,36.48066205,247.24,247.23,0.72]
[1758250134108,67.44066205,247.24,247.23,0.72]
[1758250134730,33.92222955,247.24,247.23,0.72]
[1758250134928,33.92222955,247.24,247.23,4.76481656]
[1758250135138,64.90222955,247.24,247.23,0.72]
[1758250135333,65.04439112,247.24,247.23,0.72]
[1758250135633,65.18655269,247.24,247.23,0.72]
[1758250136321,34.20655269,247.24,247.23,0.72]
[1758250136630,65.18655269,247.24,247.23,4.76481656]
[1758250136929,65.18655269,247.24,247.23,7.03892592]
[1758250139316,34.20655269,247.24,247.23,7.03892592]
[1758250139520,65.18655269,247.24,247.23,7.03892592]
[1758250140638,65.16655269,247.24,247.23,7.03892592]
[1758250141843,34.20655269,247.24,247.23,7.03892592]
[1758250142147,65.16655269,247.24,247.23,0.72]
[1758250142440,68.15066205,247.24,247.23,0.03]
[1758250142765,67.44066205,247.24,247.23,0.03]
[1758250144056,65.16655269,247.24,247.23,0.69]
[1758250147129,36.48066205,247.24,247.23,0.69]
[1758250147315,67.44066205,247.24,247.23,0.03]
[1758250148225,68.15066205,247.24,247.23,0.03]
[1758250149729,72.19531501,247.24,247.23,0.03]
[1758250150132,68.15066205,247.24,247.23,0.03]
[1758250150333,36.48066205,247.24,247.23,0.03]
[1758250150535,67.44066205,247.24,247.23,0.69]
[1758250150850,67.44066205,247.24,247.23,0.03]
[1758250152651,36.48066205,247.24,247.23,0.03]
[1758250152854,67.44066205,247.24,247.23,0.03]
[1758250153049,36.48066205,247.24,247.23,0.03]
[1758250153263,67.44066205,247.24,247.23,0.03]
[1758250154923,68.15066205,247.24,247.23,0.03]
[1758250155728,67.44066205,247.24,247.23,0.03]
[1758250156536,72.19531501,247.24,247.23,0.03]
[1758250159749,67.42066205,247.24,247.23,0.03]
[1758250159954,72.17531501,247.24,247.23,0.03]
[1758250160854,71.46531501,247.24,247.23,0.03]
[1758250161154,72.17531501,247.24,247.23,0.03]
[1758250161861,71.3561636,247.24,247.23,0.03]
[1758250163356,70.6461636,247.24,247.23,0.03]
[1758250164154,71.3561636,247.24,247.23,0.03]
[1758250164562,40.4161636,247.24,247.23,0.03]
[1758250164949,71.3561636,247.24,247.23,0.03]
[1758250169673,77.1759954,247.24,247.23,0.03]
[1758250170352,78.79670811,247.24,247.23,0.03]
[1758250173374,39.87991715,247.21,247.2,0.03]
[1758250173551,72.2748751,247.21,247.2,0.03]
[1758250173750,94.8867226,247.21,247.2,0.03]
[1758250173976,95.5467226,247.21,247.2,0.03]
[1758250174473,99.5918664,247.21,247.2,0.03]
[1758250174971,13.87991715,247.2,247.15,0.03]
[1758250175182,46.2748751,247.19,247.15,0.03]
[1758250175389,68.50887876,247.19,247.15,0.03]
[1758250175681,69.16887876,247.19,247.15,0.03]
[1758250176273,39.59559401,247.17,247.15,0.03]
[1758250176584,95.72997383,247.17,247.15,0.03]
[1758250176782,96.38997383,247.17,247.15,0.03]
[1758250177158,100.43577226,247.17,247.15,0.03]
[1758250181185,112.57577226,247.17,247.15,0.03]
[1758250181394,100.43577226,247.17,247.15,0.03]
[1758250181562,98.32081431,247.17,247.15,0.03]
[1758250182577,98.98081431,247.17,247.15,0.03]
[1758250182985,98.32081431,247.17,247.15,0.03]
[1758250185172,98.98081431,247.17,247.15,0.03]
[1758250187477,100.60192112,247.17,247.15,0.03]
[1758250188187,102.05687907,247.17,247.15,0.03]
[1758250189493,100.60192112,247.17,247.15,0.03]
[1758250190788,99.94192112,247.17,247.15,0.03]
[1758250191583,93.99069274,247.17,247.16,0.69]
[1758250191786,94.27501588,247.17,247.16,0.69]
[1758250192372,92.82005793,247.17,247.16,0.69]
[1758250192585,96.86585636,247.17,247.16,0.69]
[1758250193188,98.32081431,247.17,247.16,0.69]
[1758250193393,98.32081431,247.17,247.16,0.03]
[1758250197587,94.27501588,247.17,247.16,0.69]
[1758250198189,63.33501588,247.17,247.16,0.03]
[1758250198366,94.27501588,247.17,247.16,0.03]
[1758250198568,63.33501588,247.17,247.16,0.03]
[1758250198770,67.38081431,247.17,247.16,0.03]
[1758250198988,98.32081431,247.17,247.16,0.03]
[1758250199579,98.32081431,247.17,247.16,0.69]
[1758250200288,63.33501588,247.17,247.16,0.69]
[1758250200499,68.27501588,247.17,247.16,0.69]
[1758250200674,66.82005793,247.17,247.16,0.69]
[1758250201401,66.67789636,247.17,247.16,0.69]
[1758250201697,66.82005793,247.17,247.16,0.69]
[1758250205799,70.86585636,247.17,247.16,0.03]
[1758250207814,70.86585636,247.17,247.16,0.69]
[1758250208297,66.82005793,247.17,247.16,0.69]
[1758250208702,35.88005793,247.17,247.16,4.73596212]
[1758250208876,66.82005793,247.17,247.16,6.19092007]
[1758250212808,66.82005793,247.17,247.16,2.14495795]
[1758250213391,66.82005793,247.17,247.16,6.19092007]
[1758250213798,66.53573479,247.17,247.16,6.19092007]
[1758250215810,35.59573479,247.17,247.16,12.41184014]
[1758250215997,66.53573479,247.17,247.16,12.41184014]
[1758250219307,35.59573479,247.17,247.16,12.41184014]
[1758250220118,22.00014078,247.17,247.16,12.41184014]
[1758250223817,22.00014078,247.17,247.16,13.22992524]
[1758250227013,0.06,247.18,247.16,13.22992524]
[1758250227192,0.06,247.18,247.17,2.96304305]
[1758250227391,0.06,247.21,247.19,26.0]
[1758250227608,0.06,247.21,247.2,2.27304305]
[1758250227827,0.06,247.21,247.2,2.96304305]
[1758250228611,0.06,247.21,247.2,19.15778858]
[1758250235302,0.06,247.21,247.2,21.43083163]
[1758250237015,0.06,247.21,247.2,19.15778858]
[1758250242228,0.06,247.21,247.2,21.43083163]
[1758250248234,0.06,247.21,247.2,52.35083163]
[1758250248411,0.06,247.23,247.22,30.5460861]
[1758250248608,0.06,247.23,247.22,61.4660861]
[1758250248817,0.06,247.23,247.22,62.1560861]
[1758250249235,0.06,247.23,247.22,74.30306454]
[1758250250033,0.06,247.23,247.22,77.65804471]
[1758250251401,0.06,247.23,247.22,78.34804471]
[1758250252430,0.78,247.23,247.22,77.65804471]
[1758250253140,0.78,247.23,247.22,46.73804471]
[1758250254729,0.06,247.23,247.22,46.73804471]
[1758250258038,0.06,247.23,247.22,44.46500166]
[1758250258255,0.75,247.23,247.22,44.46500166]
[1758250259065,0.06,247.23,247.22,46.73804471]
[1758250259362,0.06,247.23,247.22,47.44804471]
[1758250259535,0.06,247.23,247.22,46.73804471]
[1758250260356,0.06,247.23,247.22,47.44804471]
[1758250265345,0.06,247.23,247.22,46.73804471]
[1758250265547,0.06,247.23,247.22,47.44804471]
[1758250267270,1e-08,247.23,247.22,47.44804471]
[1758250269664,0.06,247.27,247.22,57.56049515]
[1758250269852,1e-08,247.27,247.26,30.5460861]
[1758250270042,0.06,247.31,247.26,61.4460861]
[1758250270245,0.06,247.31,247.23,0.71]
[1758250270246,0.06,247.31,247.28,4.5460861]
[1758250270564,0.06,247.31,247.28,36.1560861]
[1758250271058,0.06,247.31,247.29,5.2560861]
[1758250271254,0.06,247.31,247.3,35.4460861]
[1758250271456,0.06,247.31,247.3,37.77509325]
[1758250271650,0.06,247.33,247.32,26.0]
[1758250271838,0.06,247.33,247.32,61.4460861]
[1758250272038,0.06,247.33,247.32,62.1560861]
[1758250272243,0.06,247.33,247.32,63.77509324]
[1758250273170,0.06,247.33,247.32,67.81843789]
[1758250273964,0.06,247.33,247.32,67.10843789]
[1758250274768,0.06,247.33,247.32,67.81843789]
[1758250276349,1e-08,247.33,247.32,67.81843789]
[1758250276870,1e-08,247.34,247.32,67.81843789]
[1758250277061,1e-08,247.34,247.33,2.98304305]
[1758250277467,1e-08,247.34,247.33,2.27304305]
[1758250277655,1e-08,247.34,247.33,2.98304305]
[1758250280672,1e-08,247.34,247.33,15.12412239]
[1758250282971,1e-08,247.34,247.33,14.41412239]
[1758250283867,1e-08,247.34,247.33,13.59326589]
[1758250284261,1e-08,247.34,247.33,17.63644706]
[1758250285885,1e-08,247.34,247.33,48.53644706]
[1758250286181,1e-08,247.34,247.33,17.63644706]
[1758250286478,1e-08,247.34,247.33,48.53644706]
[1758250287980,0.65000001,247.34,247.33,13.59326589]
[1758250288357,0.65000001,247.34,247.33,1.45218655]
[1758250289982,0.65000001,247.34,247.33,1.48218655]
[1758250290387,14.24559402,247.34,247.33,0.03]
[1758250290570,14.52991716,247.34,247.33,0.03]
[1758250290767,14.52991716,247.34,247.33,1.48218655]
[1758250291284,14.24559402,247.34,247.33,1.48218655]
[1758250292462,1e-08,247.34,247.33,5.52536772]
[1758250292788,0.65000001,247.34,247.33,17.66841279]
[1758250293395,1e-08,247.34,247.33,17.66841279]
[1758250293678,0.65000001,247.34,247.33,17.66841279]
[1758250295558,1e-08,247.34,247.33,17.66841279]
[1758250297669,1e-08,247.34,247.33,18.34841279]
[1758250298884,1e-08,247.34,247.33,17.66841279]
[1758250304606,0.65000001,247.34,247.33,17.66841279]
[1758250304893,1e-08,247.34,247.33,17.66841279]
[1758250305095,0.65000001,247.34,247.33,17.66841279]
[1758250305584,14.24559402,247.34,247.33,0.03]
[1758250305895,14.52991716,247.34,247.33,1.48218655]
[1758250307481,45.40991716,247.34,247.33,1.48218655]
[1758250310294,45.40991716,247.34,247.33,0.03]
[1758250312091,14.24559402,247.34,247.33,1.48218655]
[1758250312292,45.12559402,247.34,247.33,1.48218655]
[1758250312971,45.40991716,247.34,247.33,0.03]
[1758250317300,49.45293486,247.34,247.33,0.03]
[1758250317483,50.90512141,247.34,247.33,0.03]
[1758250319576,52.52504649,247.34,247.33,0.03]
[1758250321401,50.90512141,247.34,247.33,0.03]
[1758250323396,52.52504649,247.34,247.33,0.03]
[1758250324612,39.87991715,247.31,247.3,0.03]
[1758250324812,80.01142978,247.31,247.3,0.03]
[1758250324994,100.70142978,247.31,247.3,0.03]
[1758250325708,0.28432314,247.25,247.21,0.03]
[1758250325910,0.28432314,247.22,247.21,0.03]
[1758250326114,45.46991715,247.22,247.21,0.03]
[1758250327206,46.9221037,247.22,247.21,0.03]
[1758250328602,50.96708387,247.22,247.21,0.03]
[1758250330207,52.58779657,247.22,247.21,0.03]
[1758250331801,51.13561002,247.22,247.21,0.03]
[1758250332003,52.58779657,247.22,247.21,0.03]
[1758250332512,59.59559401,247.19,247.18,0.03]
[1758250332696,96.29757479,247.19,247.18,0.03]
[1758250332902,76.98757479,247.19,247.18,0.03]
[1758250335022,76.51757479,247.19,247.18,0.03]
[1758250335203,76.37541322,247.19,247.18,0.03]
[1758250335408,77.06541322,247.19,247.18,0.03]
[1758250335612,77.20757479,247.19,247.18,0.03]
[1758250337815,13.87991715,247.18,247.17,0.03]
[1758250338024,15.3321037,247.18,247.17,0.03]
[1758250338336,16.0221037,247.18,247.17,0.03]
[1758250338622,15.3321037,247.18,247.17,0.03]
[1758250339326,16.0221037,247.18,247.17,0.03]
[1758250340423,13.87991715,247.18,247.17,0.03]
[1758250340620,46.4721037,247.18,247.17,0.03]
[1758250341118,46.5321037,247.18,247.17,0.03]
[1758250342708,47.2221037,247.18,247.17,0.03]
[1758250343801,48.04470367,247.18,247.17,0.03]
[1758250345018,47.35470367,247.18,247.17,0.03]
[1758250346327,51.40033843,247.18,247.17,0.03]
[1758250346906,16.21470367,247.18,247.17,0.72]
[1758250347226,47.33470367,247.18,247.17,0.72]
[1758250347624,47.33470367,247.18,247.17,0.03]
[1758250347933,51.38033843,247.18,247.17,0.03]
[1758250350203,51.36033843,247.18,247.17,0.03]
[1758250352828,52.07033843,247.18,247.17,0.03]
[1758250358412,53.69137954,247.18,247.17,0.03]
[1758250360633,55.96616606,247.18,247.16,0.03]
[1758250360841,150.92949019,247.17,247.16,0.03]
[1758250361224,153.26072841,247.17,247.16,0.03]
[1758250361426,20.76072841,247.17,247.16,0.03]
[1758250362034,24.80652684,247.17,247.16,0.03]
[1758250362231,39.73775558,247.14,247.13,0.03]
[1758250362436,75.50949019,247.14,247.13,0.03]
[1758250362736,76.21949019,247.14,247.13,0.03]
[1758250363035,77.84085984,247.14,247.13,0.03]
[1758250364338,81.88714939,247.14,247.13,0.03]
[1758250366025,0.28432314,247.13,247.12,1e-08]
[1758250366214,16.15470367,247.13,247.12,1e-08]
[1758250366418,149.36470367,247.13,247.12,1e-08]
[1758250367825,148.71141826,247.13,247.12,1e-08]
[1758250368038,155.03265806,247.13,247.12,1e-08]
[1758250368834,152.75787154,247.13,247.12,1e-08]
[1758250369039,155.03265806,247.13,247.12,1e-08]
[1758250369835,53.59265806,247.13,247.12,1e-08]
[1758250371931,17.64204729,247.13,247.12,0.69000001]
[1758250372149,48.70204729,247.13,247.12,0.69000001]
[1758250372536,48.98637043,247.13,247.12,0.69000001]
[1758250372735,48.70204729,247.13,247.12,0.69000001]
[1758250373046,48.98637043,247.13,247.12,0.69000001]
[1758250373247,48.84420886,247.13,247.12,0.69000001]
[1758250374033,13.59559401,247.13,247.12,2.96478653]
[1758250374339,44.65559401,247.13,247.12,7.01140355]
[1758250375160,13.87991715,247.13,247.12,7.01140355]
[1758250375336,44.81775558,247.13,247.12,7.01140355]
[1758250375534,45.01991715,247.13,247.12,7.01140355]
[1758250376346,44.71559401,247.13,247.12,7.01140355]
[1758250376745,44.99991715,247.13,247.12,7.01140355]
[1758250377359,44.85775558,247.13,247.12,7.01140355]
[1758250377560,13.93991715,247.13,247.12,2.96478653]
[1758250377732,45.01991715,247.13,247.12,2.96478653]
[1758250378951,44.99991715,247.13,247.12,2.96478653]
[1758250379142,13.93991715,247.13,247.12,2.96478653]
[1758250379345,44.71559401,247.13,247.12,2.96478653]
[1758250379660,31.12,247.13,247.12,2.96478653]
[1758250380169,0.06,247.13,247.12,9.41624179]
[1758250384643,0.06,247.16,247.15,26.0]
[1758250384845,0.06,247.16,247.15,28.27478652]
[1758250385054,0.06,247.16,247.15,32.99091235]
[1758250385462,0.06,247.16,247.15,45.14281109]
[1758250387254,0.06,247.18,247.15,55.25812567]
[1758250387436,0.06,247.18,247.17,2.27478652]
[1758250387835,0.06,247.18,247.17,2.94478652]
[1758250388057,0.06,247.18,247.17,15.09422461]
[1758250389775,0.06,247.18,247.17,19.14002304]
[1758250396373,0.06,247.23,247.17,19.14002304]
[1758250396673,0.06,247.23,247.21,26.0]
[1758250396966,0.06,247.23,247.22,4.54957304]
[1758250397169,0.06,247.23,247.22,17.36655148]
[1758250398538,0.06,247.23,247.22,21.41153165]
[1758250400872,0.06,247.23,247.22,16.86195861]
[1758250401168,0.72,247.23,247.22,16.19195861]
[1758250401351,0.72,247.23,247.22,18.46674513]
[1758250401661,0.72,247.23,247.22,14.42176496]
[1758250401865,0.72,247.23,247.22,2.27478652]
[1758250402243,14.31559401,247.23,247.21,2.27478652]
[1758250402476,0.28432314,247.21,247.19,2.27478652]
[1758250402776,14.25559401,247.2,247.19,2.27478652]
[1758250404052,13.59559401,247.2,247.19,2.27478652]
[1758250405778,13.59559401,247.2,247.19,1.45459812]
[1758250408174,13.59559401,247.2,247.19,5.50006921]
[1758250409670,0.06,247.23,247.19,6.19006921]
[1758250409671,31.08,247.23,247.19,6.19006921]
[1758250409874,44.67559401,247.23,247.22,1.45459812]
[1758250410055,45.36559401,247.23,247.22,1.45459812]
[1758250410375,44.67559401,247.23,247.22,1.45459812]
[1758250411163,45.36559401,247.23,247.22,1.45459812]
[1758250412278,45.36559401,247.23,247.22,5.49957829]
[1758250414650,45.36559401,247.23,247.2,12.14943809]
[1758250414651,13.59559401,247.22,247.2,12.14943809]
[1758250414852,13.87991715,247.22,247.21,1.45459812]
[1758250415073,0.28432314,247.21,247.18,4.04549583]
[1758250415259,0.28432314,247.21,247.2,1.45459812]
[1758250415458,44.89991715,247.21,247.2,1.45459812]
[1758250415965,45.58991715,247.21,247.2,1.45459812]
[1758250417062,13.59559401,247.2,247.19,1.45459812]
[1758250417280,14.28559401,247.2,247.19,1.45459812]
[1758250419379,14.28559401,247.2,247.16,12.15091435]
[1758250419380,14.56991715,247.2,247.16,12.15091435]